bitfinex-derivatives/quotes_BNBF0:USTF0_20250305
["timestamp","ask_amount","ask_price","bid_price","bid_amount"]
[1741166089881,2.188,600.2,599.47,1.22962003]
[1741166089882,2.188,600.2,599.5,0.27866453]
[1741166090077,2.188,600.2,599.51,0.27866453]
[1741166090276,2.188,600.2,599.52,0.27866453]
[1741166090481,2.188,600.2,599.48,0.27866453]
[1741166090682,2.188,600.2,599.49,0.27866453]
[1741166090884,2.188,600.2,599.5,1.22962003]
[1741166091086,2.188,600.2,599.51,0.27866453]
[1741166092885,3.071,600.2,599.56,1.22962003]
[1741166093085,3.071,600.2,599.57,0.27863553]
[1741166095383,3.071,600.2,599.58,0.27863553]
[1741166095590,3.071,600.2,599.55,0.27863553]
[1741166095788,3.071,600.2,599.56,0.27863553]
[1741166095987,3.071,600.2,599.55,0.27863553]
[1741166096285,3.071,600.2,599.56,0.27863553]
[1741166096487,3.071,600.2,599.55,0.27863553]
[1741166096686,3.071,600.2,599.56,0.27863553]
[1741166096885,3.071,600.2,599.55,0.27863553]
[1741166097086,3.071,600.2,599.56,0.27863553]
[1741166097286,3.071,600.2,599.57,0.27863553]
[1741166097483,3.071,600.2,599.57,1.22962003]
[1741166097685,3.071,600.2,599.58,0.27863553]
[1741166098088,3.071,600.2,599.59,0.27888971]
[1741166098392,3.071,600.2,599.6,0.27888971]
[1741166098688,3.071,600.2,599.61,0.27888971]
[1741166098882,3.071,600.2,599.62,0.27888971]
[1741166099088,3.655,600.2,599.59,1.22962003]
[1741166099287,3.655,600.2,599.6,0.27888971]
[1741166100989,3.655,600.2,599.61,0.27888971]
[1741166101191,3.655,600.2,599.62,0.27888971]
[1741166101392,3.655,600.2,599.63,0.27888971]
[1741166101891,3.655,600.2,599.64,0.27888971]
[1741166102088,3.655,600.2,599.44,0.27888971]
[1741166102290,3.655,600.2,599.45,0.27888971]
[1741166102490,3.655,600.2,599.46,0.27888971]
[1741166102793,3.655,600.2,599.47,0.27888971]
[1741166103092,3.655,600.2,599.48,0.27888971]
[1741166103287,3.655,600.2,599.78,1.22962003]
[1741166103485,3.655,600.2,599.79,0.27888971]
[1741166103689,3.114,600.2,599.79,0.27888971]
[1741166103892,2.231,600.2,599.79,0.27888971]
[1741166105193,2.231,600.2,599.81,1.22962003]
[1741166105394,2.231,600.2,599.82,0.27888971]
[1741166107487,2.231,600.2,599.85,1.22962003]
[1741166107693,2.231,600.2,599.86,0.27888971]
[1741166109298,2.231,600.2,599.87,0.27888971]
[1741166109490,2.231,600.2,599.88,0.27888971]
[1741166109689,2.231,600.2,599.82,0.27888971]
[1741166109894,2.231,600.2,599.81,1.22962003]
[1741166109895,2.231,600.2,599.89,0.27888971]
[1741166110198,2.231,600.2,599.9,0.27882977]
[1741166110396,2.231,600.2,599.82,0.27882977]
[1741166110596,2.231,600.2,599.85,1.22962003]
[1741166110798,2.231,600.2,599.86,0.27882977]
[1741166112296,2.231,600.2,599.72,0.27882977]
[1741166114598,2.231,600.2,599.49,0.27882977]
[1741166114799,2.231,600.2,599.5,0.27882977]
[1741166114996,2.231,600.2,599.49,0.27882977]
[1741166115195,2.231,600.2,599.51,0.27882977]
[1741166115400,2.231,600.2,599.52,0.27882977]
[1741166115596,2.231,600.2,599.53,0.27882977]
[1741166115803,2.231,600.2,599.54,0.27882977]
[1741166116000,2.231,600.2,599.55,0.27882977]
[1741166116301,2.231,600.2,599.56,0.27882977]
[1741166116502,2.231,600.2,599.57,0.27882977]
[1741166116696,2.231,600.2,599.58,0.27882977]
[1741166116901,2.231,600.2,599.93,1.22962003]
[1741166117101,2.231,600.2,599.94,0.27882977]
[1741166117496,1.378,600.2,599.94,0.27882977]
[1741166118203,0.584,600.2,599.94,0.27882977]
[1741166118605,0.584,600.2,599.54,0.27882977]
[1741166118798,0.584,600.2,599.55,0.27882977]
[1741166118997,0.584,600.2,599.54,0.27882977]
[1741166119199,0.584,600.2,599.53,1.22962003]
[1741166119398,0.584,600.2,599.54,0.27875495]
[1741166119603,0.584,600.2,599.55,0.27875495]
[1741166119804,0.584,600.2,599.56,0.27875495]
[1741166120004,0.584,600.2,599.57,0.27875495]
[1741166120204,0.584,600.2,599.58,0.27875495]
[1741166120404,0.584,600.2,599.53,1.22962003]
[1741166120405,0.584,600.2,599.59,0.27875495]
[1741166120600,1.412,600.2,599.6,0.27875495]
[1741166120798,2.043,600.2,599.87,1.22962003]
[1741166121005,2.043,600.2,599.88,0.27875495]
[1741166123004,2.043,600.2,599.97,1.22962003]
[1741166123204,2.043,600.2,599.98,0.27875495]
[1741166124907,2.043,600.2,599.99,0.27856103]
[1741166125102,2.043,600.2,600.0,0.27856103]
[1741166125303,2.043,600.2,600.01,0.27856103]
[1741166125502,2.043,600.2,600.02,0.27856103]
[1741166125702,2.043,600.2,600.03,0.27856103]
[1741166126006,2.043,600.2,600.04,0.27856103]
[1741166126207,2.043,600.2,600.05,0.27856103]
[1741166126410,2.043,600.2,599.94,0.27856103]
[1741166126602,2.043,600.2,599.95,0.27856103]
[1741166126803,2.043,600.2,599.94,0.27856103]
[1741166126999,2.043,600.2,599.63,0.28996859]
[1741166127000,1.459,600.2,599.95,1.50818106]
[1741166127205,1.459,600.2,599.96,0.27856103]
[1741166129705,1.459,600.2,599.95,1.22962003]
[1741166129908,1.459,600.2,599.96,0.27857455]
[1741166130106,1.459,600.2,599.97,0.27855858]
[1741166130305,1.459,600.2,599.98,0.27855858]
[1741166130504,1.459,600.2,599.99,0.27855858]
[1741166130706,1.459,600.2,599.96,0.27855858]
[1741166131113,1.459,600.2,599.95,1.22962003]
[1741166131705,1.459,600.2,599.96,0.27850587]
[1741166131908,1.459,600.2,599.95,1.22962003]
[1741166131909,1.459,600.2,599.97,0.27840408]
[1741166132112,1.459,600.2,599.96,0.27840408]
[1741166132311,1.459,600.2,599.97,0.27840408]
[1741166132511,1.459,600.2,599.96,0.27840408]
[1741166132710,1.459,600.2,600.03,1.22962003]
[1741166132911,1.459,600.2,600.04,0.27840408]
[1741166133313,1.459,600.2,600.03,1.22962003]
[1741166134412,1.459,600.2,599.78,2.5189937]
[1741166134413,1.459,600.2,600.04,0.27854901]
[1741166134613,1.459,600.2,599.85,0.27854901]
[1741166134809,1.459,600.2,599.86,0.27854901]
[1741166135010,1.459,600.2,599.87,0.27854901]
[1741166135214,1.459,600.2,599.88,0.27854901]
[1741166135415,1.459,600.2,599.89,0.27854901]
[1741166135609,1.459,600.2,599.84,1.22962003]
[1741166135610,0.631,600.2,599.9,0.27854901]
[1741166135917,0.631,600.2,599.91,0.27854901]
[1741166136119,0.631,600.2,599.87,1.22962003]
[1741166136313,0.631,600.2,599.88,0.27857913]
[1741166136618,0.631,600.2,599.89,0.27857913]
[1741166136820,0.631,600.2,599.9,0.27857913]
[1741166137120,0.631,600.2,599.91,0.27857913]
[1741166137318,0.631,600.2,599.92,0.27857913]
[1741166137513,0.631,600.2,599.93,0.27857913]
[1741166137716,0.631,600.2,599.94,0.27857913]
[1741166137917,0.631,600.2,599.87,1.22962003]
[1741166138218,0.631,600.2,599.99,1.22962003]
[1741166138521,0.631,600.2,600.0,0.27866174]
[1741166138819,0.631,600.2,600.01,0.27866174]
[1741166139021,0.631,600.2,600.02,0.27866174]
[1741166139219,0.631,600.2,600.0,0.27866174]
[1741166139415,0.631,600.2,600.01,0.27866174]
[1741166139615,0.631,600.2,599.99,1.22962003]
[1741166139820,0.783,600.45,600.0,0.27858176]
[1741166140220,0.783,600.45,600.01,0.27858176]
[1741166140619,0.783,600.45,600.02,0.27858176]
[1741166140817,0.783,600.45,599.79,0.27858176]
[1741166141016,0.783,600.45,600.03,0.27858176]
[1741166141219,0.783,600.45,600.04,0.27858176]
[1741166141416,0.783,600.45,600.05,0.27866487]
[1741166141618,0.783,600.45,599.79,0.27866487]
[1741166141819,0.783,600.45,599.8,0.27866487]
[1741166142019,0.783,600.45,600.01,1.22962003]
[1741166142222,0.783,600.45,600.02,0.27866487]
[1741166145217,0.783,600.45,600.03,0.27866487]
[1741166145420,0.783,600.45,600.04,0.27866487]
[1741166145623,0.783,600.45,600.05,0.27866487]
[1741166145824,0.783,600.45,599.87,0.27866487]
[1741166146019,0.783,600.45,599.88,0.27866487]
[1741166146223,0.783,600.45,599.87,0.27866487]
[1741166146422,0.783,600.45,599.88,0.27866487]
[1741166146619,0.783,600.45,599.86,1.22962003]
[1741166146824,0.783,600.45,599.87,0.27881138]
[1741166147023,0.783,600.45,599.67,0.28994443]
[1741166147024,0.783,600.45,599.68,0.27881138]
[1741166147222,0.783,600.45,599.69,0.27881138]
[1741166147420,0.783,600.45,599.7,0.27881138]
[1741166147728,0.783,600.45,599.71,0.27881138]
[1741166147927,0.783,600.45,599.68,0.27881138]
[1741166148226,0.783,600.45,599.69,0.27881138]
[1741166148525,1.381,600.45,599.7,0.27898601]
[1741166148727,1.381,600.45,599.68,0.27898601]
[1741166148927,1.381,600.45,599.69,0.27898601]
[1741166149126,1.969,600.45,599.68,0.27898601]
[1741166149426,1.969,600.45,599.69,0.27898601]
[1741166149627,1.969,600.45,599.7,0.27898601]
[1741166149826,1.969,600.45,593.75,15.96588989]
[1741166149827,1.969,600.45,599.71,0.27898601]
[1741166150226,1.969,600.45,599.72,0.27898601]
[1741166150526,1.969,600.45,599.73,0.27898601]
[1741166150726,1.969,600.45,599.67,0.27898601]
[1741166150927,1.969,600.45,599.68,0.27898601]
[1741166151130,1.969,600.45,599.67,0.27898601]
[1741166151428,1.969,600.45,599.68,0.27898601]
[1741166151629,1.969,600.45,599.69,0.27898601]
[1741166151831,1.969,600.45,599.8,1.22962003]
[1741166152024,1.969,600.45,599.81,0.27898601]
[1741166152425,1.969,600.45,599.82,0.27898601]
[1741166152621,1.969,600.45,599.83,0.27898601]
[1741166152826,1.969,600.45,599.84,0.27898601]
[1741166153127,1.969,600.45,599.85,0.27898601]
[1741166153329,1.969,600.45,599.8,1.22962003]
[1741166153528,1.969,600.45,599.88,1.22962003]
[1741166153722,1.969,600.45,599.89,0.27881247]
[1741166154124,1.969,600.45,599.9,0.27881247]
[1741166154328,1.969,600.45,599.91,0.27881247]
[1741166154627,1.969,600.45,599.92,0.27881247]
[1741166154828,1.969,600.45,599.89,0.27881247]
[1741166155130,1.969,600.45,599.9,0.27881247]
[1741166155324,1.969,600.45,599.88,1.22962003]
[1741166155529,1.969,600.45,599.89,0.2785947]
[1741166156227,1.969,600.45,599.9,0.2785947]
[1741166156424,1.969,600.45,599.85,0.2785947]
[1741166156627,1.969,600.45,599.91,0.2785947]
[1741166156826,1.969,600.45,599.92,0.2785947]
[1741166157023,1.969,600.45,599.93,0.2785947]
[1741166157227,1.969,600.45,599.94,0.2785947]
[1741166157429,1.969,600.45,599.95,0.2785947]
[1741166157723,1.969,600.45,599.96,0.2785947]
[1741166157929,1.969,600.45,600.12,1.22962003]
[1741166158129,1.969,600.45,600.13,0.2785947]
[1741166158329,1.186,600.45,600.13,0.2785947]
[1741166158832,1.186,600.45,600.12,1.22962003]
[1741166159029,1.186,600.45,600.13,0.27824379]
[1741166159428,1.186,600.45,600.03,0.27824379]
[1741166159626,1.186,600.45,600.04,0.27824379]
[1741166159830,1.186,600.45,600.03,0.27824379]
[1741166160626,1.186,600.45,600.04,0.27811117]
[1741166160931,1.186,600.45,600.05,0.27811117]
[1741166161131,1.186,600.45,600.06,0.27811117]
[1741166161324,1.186,600.45,600.03,0.27811117]
[1741166161525,1.186,600.45,600.04,0.27811117]
[1741166161732,1.186,600.45,599.79,0.27811117]
[1741166161933,1.186,600.45,599.8,0.27811117]
[1741166162129,1.186,600.45,599.81,0.27811117]
[1741166162526,1.186,600.45,599.82,0.27811117]
[1741166162728,1.186,600.45,599.83,0.27811117]
[1741166162928,1.186,600.45,599.84,0.27811117]
[1741166163132,1.186,600.45,600.09,1.22962003]
[1741166163331,1.186,600.45,600.1,0.27811117]
[1741166163529,0.598,600.45,600.1,0.27811117]
[1741166165834,0.598,600.45,600.11,0.27811117]
[1741166166033,0.598,600.45,599.77,0.27811117]
[1741166166335,0.598,600.45,599.78,0.27811117]
[1741166166629,0.598,600.45,599.79,0.27811117]
[1741166166826,0.598,600.45,599.77,0.27811117]
[1741166167034,0.598,600.45,599.78,0.27811117]
[1741166167334,0.598,600.45,599.93,1.22962003]
[1741166167533,0.598,600.45,599.94,0.27811117]
[1741166169134,0.598,600.45,599.97,1.22962003]
[1741166169334,0.598,600.45,599.98,0.27811117]
[1741166171132,0.598,600.45,599.99,0.27811117]
[1741166171334,0.598,600.45,599.91,0.27811117]
[1741166171533,0.598,600.45,599.92,0.27811117]
[1741166171736,0.598,600.45,599.91,0.27811117]
[1741166171931,0.598,600.45,599.92,0.27811117]
[1741166172136,0.598,600.45,599.91,0.27811117]
[1741166172336,0.598,600.45,599.92,0.27811117]
[1741166172539,0.598,600.45,599.91,0.27811117]
[1741166172736,0.598,600.45,599.9,1.22962003]
[1741166173033,0.598,600.45,599.91,0.27873551]
[1741166173831,0.598,600.45,599.77,0.27873551]
[1741166174031,0.598,600.45,599.78,0.27873551]
[1741166174331,0.598,600.45,599.79,0.27873551]
[1741166174533,0.598,600.45,599.8,0.27873551]
[1741166174733,0.598,600.45,599.81,0.27873551]
[1741166174935,0.598,600.45,599.76,1.22962003]
[1741166174936,0.598,600.45,599.77,0.27873551]
[1741166175136,0.598,600.45,599.78,0.27873551]
[1741166175339,0.598,600.45,599.77,0.27873551]
[1741166175541,0.598,600.45,599.78,0.27873551]
[1741166175734,0.598,600.45,599.77,0.27873551]
[1741166175937,0.598,600.45,599.8,1.22962003]
[1741166176137,1.142,600.45,599.8,1.22962003]
[1741166176437,1.142,600.45,599.81,0.27873551]
[1741166178040,1.142,600.45,599.82,0.27855571]
[1741166178241,1.142,600.45,599.71,1.22962003]
[1741166178242,1.142,600.45,599.72,0.27855571]
[1741166178439,1.142,600.45,599.73,0.27855571]
[1741166178641,1.142,600.45,599.74,0.27855571]
[1741166178836,1.142,600.45,599.75,0.27855571]
[1741166179041,1.142,600.45,599.72,0.27855571]
[1741166179245,1.142,600.45,599.73,0.27855571]
[1741166179443,1.142,600.45,599.74,0.27855571]
[1741166179643,1.142,600.45,599.71,1.22962003]
[1741166179942,1.142,600.45,599.72,0.27861461]
[1741166180546,1.142,600.45,599.75,1.22962003]
[1741166180748,1.142,600.45,599.76,0.27861461]
[1741166181447,1.142,600.45,599.77,0.27878177]
[1741166181641,1.142,600.45,599.75,1.22962003]
[1741166181642,1.142,600.45,599.76,0.27878177]
[1741166181845,1.142,600.45,599.75,1.22962003]
[1741166181846,1.142,600.45,599.77,0.27878177]
[1741166182045,1.142,600.45,599.76,0.27878177]
[1741166182246,1.142,600.45,599.77,0.27878177]
[1741166182446,1.142,600.45,599.78,0.27878177]
[1741166182646,1.142,600.45,599.67,0.27878177]
[1741166182847,1.142,600.45,599.68,0.27878177]
[1741166183043,1.142,600.45,599.69,0.27878177]
[1741166183247,1.142,600.45,599.7,0.27895235]
[1741166183447,1.679,600.45,599.67,1.50857238]
[1741166183647,0.28999758,600.44,599.68,0.27895235]
[1741166185653,0.28999758,600.44,599.47,0.29001571]
[1741166185847,0.28999758,600.44,599.48,0.27922366]
[1741166186050,0.28999758,600.44,599.4,0.27922366]
[1741166186252,0.28999758,600.44,599.41,0.27922366]
[1741166186551,0.28999758,600.44,599.42,0.27922366]
[1741166186748,0.28999758,600.44,599.4,0.27922366]
[1741166186952,0.28999758,600.44,599.41,0.27922366]
[1741166187249,1.15299758,600.44,599.4,0.27922366]
[1741166187551,1.15299758,600.44,599.41,0.27922366]
[1741166187753,1.15299758,600.44,599.4,0.27922366]
[1741166188053,0.863,600.44,599.41,0.27922366]
[1741166188254,0.863,600.44,599.42,0.27922366]
[1741166188450,0.863,600.44,599.43,0.27922366]
[1741166188649,0.33309461,600.43,599.44,0.27922366]
[1741166188856,0.9466494,600.42,599.45,0.27922366]
[1741166189055,0.33309461,600.43,599.46,0.27922366]
[1741166189357,0.29008582,600.41,599.47,0.27922366]
[1741166189556,0.29008582,600.41,599.48,0.27922366]
[1741166189949,0.29008582,600.41,599.49,0.27922366]
[1741166190260,0.29008582,600.41,599.5,0.27922366]
[1741166190451,0.29008582,600.41,599.51,0.27922366]
[1741166190752,3.17061665,600.4,599.52,0.27922366]
[1741166190950,2.61161665,600.39,599.5,0.27922366]
[1741166191150,2.944739,600.38,599.51,0.27922366]
[1741166191356,0.3331279,600.37,599.52,0.27922366]
[1741166191554,0.3331279,600.37,599.5,0.27922366]
[1741166191752,0.3331279,600.37,599.49,1.22962003]
[1741166191956,0.3331279,600.37,599.5,0.27924342]
[1741166192555,0.3331279,600.37,599.41,1.22962003]
[1741166192556,0.3331279,600.37,599.42,0.27924342]
[1741166192752,0.3331279,600.37,599.43,0.27924342]
[1741166192954,0.3331279,600.37,599.42,0.27924342]
[1741166193155,0.3331279,600.37,599.43,0.27924342]
[1741166193355,0.3331279,600.37,599.42,0.27924342]
[1741166193557,0.3331279,600.37,599.43,0.27924342]
[1741166193759,0.3331279,600.37,599.42,0.27924342]
[1741166193958,0.3331279,600.37,599.37,0.29008582]
[1741166193959,0.3331279,600.37,599.43,0.27924342]
[1741166194262,0.3331279,600.37,599.33,1.22962003]
[1741166195455,0.29009428,600.36,599.34,0.29009428]
[1741166195662,0.333139,600.35,599.35,0.27916108]
[1741166195962,0.333139,600.35,599.36,0.27916108]
[1741166196163,0.333139,600.35,599.37,0.27916108]
[1741166196360,0.333139,600.35,599.35,1.22962003]
[1741166196558,0.333139,600.35,599.36,0.27908375]
[1741166196758,0.333139,600.35,599.37,0.27908375]
[1741166196959,0.333139,600.35,599.36,0.27908375]
[1741166197160,0.333139,600.35,599.37,0.27908375]
[1741166197362,0.333139,600.35,599.36,0.27908375]
[1741166197560,0.333139,600.35,599.37,0.27908375]
[1741166197761,0.333139,600.35,599.35,1.22962003]
[1741166197762,0.333139,600.35,599.36,0.27908375]
[1741166197961,0.333139,600.35,599.37,0.27908375]
[1741166198157,0.333139,600.35,599.38,0.27895019]
[1741166198364,0.333139,600.35,599.36,0.27895019]
[1741166198564,0.333139,600.35,599.37,0.27895019]
[1741166198764,0.333139,600.35,599.38,0.27895019]
[1741166198959,0.333139,600.35,599.36,0.27895019]
[1741166199166,0.333139,600.35,599.37,0.27895019]
[1741166199367,0.333139,600.35,599.35,0.27895019]
[1741166199667,0.333139,600.35,599.36,0.27895019]
[1741166199865,0.333139,600.35,599.35,0.27895019]
[1741166200060,0.333139,600.35,599.36,0.27895019]
[1741166200261,0.333139,600.35,599.35,0.27895019]
[1741166200461,0.333139,600.35,599.36,0.27895019]
[1741166200665,0.333139,600.35,599.16,0.27895019]
[1741166200859,0.333139,600.35,599.17,0.27895019]
[1741166201062,0.333139,600.35,599.18,0.27895019]
[1741166201261,0.333139,600.35,599.16,0.27895019]
[1741166201466,0.29010154,600.34,599.19,0.29010154]
[1741166201667,0.29010154,600.34,599.2,0.27895019]
[1741166202166,0.29010154,600.34,599.21,0.3337728]
[1741166202371,0.29010154,600.34,599.22,0.27895019]
[1741166202567,0.564,600.33,599.23,0.33376166]
[1741166202767,0.564,600.33,599.24,0.27895019]
[1741166203068,0.564,600.33,599.25,0.33375052]
[1741166203367,0.564,600.33,599.26,0.27895019]
[1741166203663,0.564,600.33,599.27,0.33373938]
[1741166203867,1.307,600.33,599.28,0.27895019]
[1741166204069,1.307,600.33,599.29,0.33372824]
[1741166204268,1.307,600.33,599.3,0.27895019]
[1741166204668,1.307,600.33,599.31,0.27895019]
[1741166204864,1.307,600.33,599.32,0.27895019]
[1741166205070,1.307,600.33,599.33,0.27895019]
[1741166205371,1.307,600.33,599.34,0.27895019]
[1741166205570,1.307,600.33,599.35,0.27895019]
[1741166205771,1.307,600.33,599.36,0.27895019]
[1741166205972,1.307,600.33,599.37,0.27895019]
[1741166206174,1.307,600.33,599.38,0.27895019]
[1741166206372,1.307,600.33,599.42,1.22962003]
[1741166206567,1.307,600.33,599.43,0.27895019]
[1741166206767,2.796,600.33,599.43,0.27895019]
[1741166206970,2.796,600.33,599.44,0.27895019]
[1741166207173,2.796,600.33,599.45,0.27895019]
[1741166207568,2.796,600.33,599.46,0.27895019]
[1741166207772,2.796,600.33,599.47,0.27895019]
[1741166207969,2.796,600.33,599.48,0.27895019]
[1741166208173,2.796,600.33,599.49,0.27895019]
[1741166208369,2.796,600.33,599.5,1.50857022]
[1741166208778,2.796,600.33,599.51,0.27895019]
[1741166209074,2.796,600.33,599.52,0.27895019]
[1741166209277,2.796,600.33,599.53,0.27895019]
[1741166209574,2.796,600.33,599.5,1.22962003]
[1741166209575,2.796,600.33,599.54,0.27895019]
[1741166209776,2.796,600.33,599.55,0.27895019]
[1741166209975,2.796,600.33,599.56,0.27895019]
[1741166210169,2.796,600.33,599.57,0.27895019]
[1741166210475,2.796,600.33,599.58,0.27915548]
[1741166210675,2.796,600.33,599.54,0.27915548]
[1741166210877,2.796,600.33,599.55,0.27915548]
[1741166211077,2.796,600.33,599.56,0.27915548]
[1741166211278,2.796,600.33,599.57,0.27915548]
[1741166211578,2.796,600.33,599.58,0.27915548]
[1741166211975,2.796,600.33,599.59,0.27915548]
[1741166212177,2.796,600.33,599.65,1.22962003]
[1741166212372,2.796,600.33,599.66,0.27915548]
[1741166214179,2.796,600.33,599.67,0.27915548]
[1741166214381,2.796,600.33,599.68,0.27915548]
[1741166214580,2.796,600.33,599.69,0.27915548]
[1741166214780,2.796,600.33,599.62,0.27915548]
[1741166214984,2.796,600.33,599.63,0.27915548]
[1741166215178,2.796,600.33,599.61,1.22962003]
[1741166215179,2.796,600.33,599.62,0.27915548]
[1741166215382,2.796,600.33,599.61,1.22962003]
[1741166215579,2.796,600.33,599.63,0.27915322]
[1741166215778,2.796,600.33,599.64,0.27915322]
[1741166215982,2.796,600.33,599.65,0.27915322]
[1741166216284,2.796,600.33,599.66,0.27915322]
[1741166216483,2.796,600.33,599.67,0.27915322]
[1741166216683,2.796,600.33,599.62,0.27915322]
[1741166216884,2.796,600.33,599.75,1.22962003]
[1741166217079,2.796,600.33,599.76,0.27915322]
[1741166217285,3.792,600.33,599.76,0.27915322]
[1741166219181,3.792,600.33,599.67,0.27915322]
[1741166219384,0.29006043,600.32,599.68,0.27915322]
[1741166219580,0.29006043,600.32,599.69,0.27915322]
[1741166219780,0.29006043,600.32,599.67,0.27915322]
[1741166219980,0.29006043,600.32,599.68,0.27915322]
[1741166220187,0.29006043,600.32,599.69,0.27915322]
[1741166220482,0.29006043,600.32,599.7,0.27915322]
[1741166220683,0.29006043,600.32,599.67,0.27915322]
[1741166220878,0.29006043,600.32,599.68,0.27915322]
[1741166221082,0.29006043,600.32,599.69,1.22962003]
[1741166221685,0.29006043,600.32,599.7,0.27915322]
[1741166222479,3.792,600.33,599.7,0.27915322]
[1741166223085,2.94575116,600.32,599.7,0.27915322]
[1741166223283,1.49389307,600.32,599.7,0.27915322]
[1741166223687,0.29005076,600.31,599.71,0.27915322]
[1741166223882,0.29005076,600.31,599.72,0.27915322]
[1741166224082,0.29005076,600.31,599.67,0.27915322]
[1741166224286,0.33315565,600.32,599.68,0.27915322]
[1741166224488,0.33315565,600.32,599.67,0.27915322]
[1741166224685,0.33315565,600.32,599.66,1.22962003]
[1741166224686,0.33315565,600.32,599.68,0.27915322]
[1741166224883,0.33315565,600.32,599.67,0.27915322]
[1741166225083,0.33315565,600.32,599.68,0.27915322]
[1741166225283,0.33315565,600.32,599.69,0.27915322]
[1741166225590,0.29005318,600.31,599.7,0.27915322]
[1741166225785,0.29005318,600.31,599.57,0.27915322]
[1741166225989,0.29005318,600.31,599.58,0.27945863]
[1741166226289,0.29005318,600.31,599.59,0.27945863]
[1741166226484,0.29005318,600.31,599.57,0.27945863]
[1741166226789,0.29005318,600.31,599.58,0.27945863]
[1741166226991,0.29005318,600.31,599.57,0.27945863]
[1741166227191,0.33315565,600.32,599.58,0.27945863]
[1741166227392,0.94726438,600.31,599.57,0.27945863]
[1741166227691,2.61313727,600.3,599.58,0.27945863]
[1741166227888,2.61313727,600.29,599.57,0.27945863]
[1741166228086,0.9472819,600.28,599.59,0.27945863]
[1741166228286,0.33315565,600.32,599.6,0.27945863]
[1741166228591,0.29008219,600.28,599.61,0.27945863]
[1741166228891,0.29008219,600.28,599.62,0.27945863]
[1741166229091,0.29008219,600.28,599.56,1.22962003]
[1741166229092,0.29008219,600.28,599.57,0.27945863]
[1741166229295,0.29008219,600.28,599.58,0.27945863]
[1741166229487,0.29008219,600.28,599.58,1.22962003]
[1741166229685,0.29008219,600.28,599.59,0.27945863]
[1741166230294,0.33315565,600.32,599.59,0.27945863]
[1741166230592,2.61330077,600.31,599.59,0.27945863]
[1741166230793,3.77490503,600.3,599.59,0.27945863]
[1741166231092,2.61330077,600.29,599.59,0.27945863]
[1741166231292,2.61330077,600.28,599.59,0.27945863]
[1741166231493,1.16160426,600.3,599.59,0.27945863]
[1741166231690,2.61319585,600.29,599.59,0.27945863]
[1741166231893,2.61319585,600.28,599.59,0.27945863]
[1741166232088,0.29007494,600.31,599.59,0.27945863]
[1741166232293,2.61320661,600.3,599.59,0.27945863]
[1741166232494,0.29007494,600.31,599.59,0.27945863]
[1741166232885,0.29007494,600.31,599.6,0.27945863]
[1741166233091,0.33315565,600.32,599.61,0.27945863]
[1741166233392,0.33315565,600.32,599.62,0.27945863]
[1741166233593,1.10815565,600.32,599.65,1.22962003]
[1741166233792,0.29004834,600.31,599.66,0.27945863]
[1741166234193,1.10815565,600.32,599.66,0.27945863]
[1741166235399,1.10815565,600.32,599.73,1.22962003]
[1741166235594,1.10815565,600.32,599.74,0.27945863]
[1741166236088,1.65515565,600.32,599.74,0.27945863]
[1741166236894,2.23415565,600.32,599.74,0.27945863]
[1741166238194,2.23415565,600.32,599.75,0.28029763]
[1741166238398,2.23415565,600.32,599.74,0.28029763]
[1741166238697,2.23415565,600.32,599.75,0.28029763]
[1741166238896,2.23415565,600.32,599.54,0.28029763]
[1741166239103,2.23415565,600.32,599.55,0.28029763]
[1741166239402,2.23415565,600.32,599.56,0.28029763]
[1741166239597,2.23415565,600.32,599.54,0.28029763]
[1741166239903,2.23415565,600.32,599.55,0.28029763]
[1741166240096,2.23415565,600.32,599.54,0.28029763]
[1741166240302,2.23415565,600.32,599.57,1.22962003]
[1741166240500,2.23415565,600.32,599.58,0.28029763]
[1741166240897,2.23415565,600.32,599.59,0.28029763]